fUST/lending_fUST_20250718
["ID","MTS","AMOUNT","RATE_DAILY","PERIOD"]
[372961255,1752823845045,-1500.0,0.00017868,2]
[372961256,1752823845055,-419.78,0.0001797,3]
[372961257,1752823845064,-460.0,0.00017977,2]
[372961258,1752823845074,-460.0,0.00017977,2]
[372961259,1752823845083,-460.0,0.00017977,2]
[372961260,1752823845092,-460.0,0.00017977,2]
[372961261,1752823845102,-1420.83,0.00017977,2]
[372961262,1752823845111,-460.0,0.00017977,2]
[372961263,1752823845121,-3946.43,0.00017977,2]
[372961264,1752823845131,-460.0,0.00017978,2]
[372961265,1752823845140,-460.0,0.00017978,2]
[372961266,1752823845150,-460.0,0.00017978,2]
[372961267,1752823845159,-460.0,0.00017978,2]
[372961268,1752823845169,-460.0,0.00017978,2]
[372961269,1752823845178,-460.0,0.00017978,2]
[372961270,1752823845188,-460.0,0.00017978,2]
[372961271,1752823845198,-460.0,0.00017978,2]
[372961272,1752823845208,-158.09,0.00017978,2]
[372961273,1752823845217,-460.0,0.00017978,2]
[372961274,1752823845227,-1726.21,0.00017978,2]
[372961275,1752823845237,-460.0,0.00017978,2]
[372961276,1752823845246,-460.0,0.00017978,2]
[372961278,1752823845255,-986.53,0.00017978,2]
[372961280,1752823845264,-460.0,0.00017978,2]
[372961281,1752823845273,-460.0,0.00017978,2]
[372961282,1752823845283,-460.0,0.00017978,2]
[372961283,1752823845294,-460.0,0.00017978,2]
[372961284,1752823845303,-460.0,0.00017978,2]
[372961285,1752823845312,-460.0,0.00017978,2]
[372961286,1752823845322,-1371.94,0.00017978,2]
[372961287,1752823845332,-370.33834934,0.00017978,2]
[372961288,1752823845343,-460.0,0.00017978,2]
[372961289,1752823845352,-460.0,0.00017978,2]
[372961290,1752823845361,-460.0,0.00017978,2]
[372961291,1752823845370,-911.92,0.00017978,2]
[372961292,1752823845380,-460.0,0.00017978,2]
[372961293,1752823845390,-460.0,0.00017978,2]
[372961294,1752823845399,-460.0,0.00017978,2]
[372961295,1752823845408,-460.0,0.00017978,2]
[372961296,1752823845418,-629.12,0.00017978,2]
[372961297,1752823845427,-460.0,0.00017978,2]
[372961298,1752823845438,-638.39,0.00017978,2]
[372961299,1752823845447,-464.0,0.00017979,2]
[372961300,1752823845457,-885.0,0.00017979,2]
[372961301,1752823845467,-460.0,0.00017979,2]
[372961302,1752823845478,-460.0,0.00017979,2]
[372961303,1752823845488,-460.0,0.00017979,2]
[372961304,1752823845497,-2855.59,0.00017979,2]
[372961305,1752823845507,-460.0,0.00017979,2]
[372961306,1752823845516,-609.03,0.00017979,2]
[372961307,1752823845526,-460.0,0.00017979,2]
[372961308,1752823845539,-460.0,0.00017979,2]
[372961309,1752823845548,-758.61,0.00017979,2]
[372961310,1752823845557,-47644.38513434,0.00018,2]
[372961311,1752823845568,-460.0,0.00018077,2]
[372961312,1752823845579,-559.85864458,0.00018077,2]
[372961313,1752823845590,-193.4,0.00018077,2]
[372961314,1752823845600,-460.0,0.00018077,2]
[372961315,1752823845610,-460.0,0.00018077,2]
[372961316,1752823845620,-460.0,0.00018077,2]
[372961317,1752823845630,-609.42390339,0.00018077,2]
[372961318,1752823845641,-460.0,0.00018077,2]
[372961319,1752823845650,-460.0,0.00018077,2]
[372961320,1752823845660,-460.0,0.00018077,2]
[372961321,1752823845670,-460.0,0.00018077,2]
[372961322,1752823845681,-511.89,0.00018077,2]
[372961323,1752823845691,-460.0,0.00018077,2]
[372961324,1752823845701,-460.0,0.00018077,2]
[372961325,1752823845710,-1478.52,0.00018077,2]
[372961326,1752823845720,-460.0,0.00018077,2]
[372961327,1752823845730,-836.74,0.00018078,2]
[372961328,1752823845739,-2434.15,0.00018078,2]
[372961329,1752823845749,-675.88,0.00018078,2]
[372961330,1752823845758,-1070.21524862,0.00018141,2]
[372961331,1752823845769,-885.0,0.00018145,2]
[372961332,1752823845779,-500.0,0.00018233,2]
[372961333,1752823845788,-156.12996158,0.00018233,2]
[372961334,1752823845798,-460.0,0.00018251,2]
[372961335,1752823845809,-460.0,0.00018251,2]
[372961336,1752823845818,-460.0,0.00018251,2]
[372961337,1752823845828,-460.0,0.00018251,2]
[372961338,1752823845837,-1420.83,0.00018251,2]
[372961339,1752823845849,-460.0,0.00018251,2]
[372961340,1752823845858,-3946.43,0.00018251,2]
[372961341,1752823845868,-460.0,0.00018252,2]
[372961342,1752823845877,-460.0,0.00018252,2]
[372961343,1752823845887,-460.0,0.00018252,2]
[372961344,1752823845897,-223.36,0.00018252,2]
[372961345,1752823845907,-460.0,0.00018252,2]
[372961346,1752823845917,-460.0,0.00018252,2]
[372961348,1752823845926,-460.0,0.00018252,2]
[372961350,1752823845935,-460.0,0.00018252,2]
[372961352,1752823845945,-595.34453808,0.00018252,2]
[372961355,1752823845955,-1726.21,0.00018252,2]
[372961357,1752823845964,-460.0,0.00018252,2]
[372961358,1752823845974,-460.0,0.00018252,2]
[372961359,1752823846072,-986.53,0.00018252,2]
[372961360,1752823846082,-460.0,0.00018252,2]
[372961362,1752823846095,-460.0,0.00018252,2]
[372961364,1752823846104,-460.0,0.00018252,2]
[372961365,1752823846114,-460.0,0.00018252,2]
[372961366,1752823846123,-199.88,0.00018252,2]
[372961367,1752823846132,-460.0,0.00018252,2]
[372961368,1752823846142,-1371.94,0.00018252,2]
[372961369,1752823846151,-535.16,0.00018252,2]
[372961371,1752823846161,-460.0,0.00018252,2]
[372961373,1752823846170,-460.0,0.00018252,2]
[372961375,1752823846180,-911.92,0.00018252,2]
[372961376,1752823846189,-460.0,0.00018252,2]
[372961377,1752823846199,-460.0,0.00018252,2]
[372961378,1752823846208,-314.39,0.00018252,2]
[372961379,1752823846218,-334.47,0.00018252,2]
[372961380,1752823846227,-629.12,0.00018252,2]
[372961382,1752823846237,-460.0,0.00018252,2]
[372961384,1752823846247,-638.39,0.00018252,2]
[372961386,1752823846258,-464.0,0.00018253,2]
[372961388,1752823846267,-885.0,0.00018253,2]
[372961390,1752823846277,-460.0,0.00018253,2]
[372961392,1752823846287,-460.0,0.00018253,2]
[372961395,1752823846296,-460.0,0.00018253,2]
[372961397,1752823846306,-2855.59,0.00018253,2]
[372961399,1752823846315,-460.0,0.00018253,2]
[372961401,1752823846325,-609.03,0.00018253,2]
[372961403,1752823846335,-460.0,0.00018253,2]
[372961405,1752823846346,-460.0,0.00018253,2]
[372961407,1752823846355,-758.61,0.00018253,2]
[372961409,1752823846365,-2682.70294298,0.00018312,2]
[372961411,1752823846374,-460.0,0.00018351,2]
[372961413,1752823846384,-460.0,0.00018351,2]
[372961415,1752823846394,-460.0,0.00018351,2]
[372961416,1752823846403,-460.0,0.00018351,2]
[372961417,1752823846413,-460.0,0.00018351,2]
[372961418,1752823846422,-460.0,0.00018351,2]
[372961419,1752823846432,-460.0,0.00018351,2]
[372961420,1752823846442,-511.89,0.00018351,2]
[372961421,1752823846451,-460.0,0.00018351,2]
[372961422,1752823846461,-460.0,0.00018351,2]
[372961423,1752823846471,-1478.52,0.00018351,2]
[372961425,1752823846480,-460.0,0.00018351,2]
[372961427,1752823846491,-836.74,0.00018352,2]
[372961430,1752823846500,-2434.15,0.00018352,2]
[372961432,1752823846510,-675.88,0.00018352,2]
[372961434,1752823846519,-500.0,0.00018416,2]
[372961436,1752823846528,-1070.21524862,0.00018452,2]
[372961438,1752823846543,-460.0,0.00018525,2]
[372961440,1752823846552,-460.0,0.00018525,2]
[372961442,1752823846562,-325.77,0.00018525,2]
[372961444,1752823846572,-460.0,0.00018525,2]
[372961446,1752823846582,-1420.83,0.00018525,2]
[372961448,1752823846593,-460.0,0.00018525,2]
[372961450,1752823846603,-3946.43,0.00018525,2]
[372961452,1752823846613,-460.0,0.00018526,2]
[372961454,1752823846623,-460.0,0.00018526,2]
[372961456,1752823846633,-252.9,0.00018526,2]
[372961458,1752823846642,-200.14,0.00018526,2]
[372961460,1752823846653,-460.0,0.00018526,2]
[372961462,1752823846663,-460.0,0.00018526,2]
[372961464,1752823846673,-460.0,0.00018526,2]
[372961466,1752823846684,-1726.21,0.00018526,2]
[372961468,1752823846694,-460.0,0.00018526,2]
[372961470,1752823846704,-460.0,0.00018526,2]
[372961472,1752823846714,-986.53,0.00018526,2]
[372961474,1752823846724,-460.0,0.00018526,2]
[372961475,1752823846734,-460.0,0.00018526,2]
[372961476,1752823846743,-460.0,0.00018526,2]
[372961477,1752823846753,-460.0,0.00018526,2]
[372961478,1752823846763,-460.0,0.00018526,2]
[372961479,1752823846772,-1371.94,0.00018526,2]
[372961480,1752823846782,-460.0,0.00018526,2]
[372961481,1752823846791,-460.0,0.00018526,2]
[372961482,1752823846802,-911.92,0.00018526,2]
[372961483,1752823846811,-355.73,0.00018526,2]
[372961484,1752823846821,-629.12,0.00018526,2]
[372961485,1752823846830,-462.54,0.00018526,2]
[372961486,1752823846840,-638.39,0.00018526,2]
[372961487,1752823846851,-464.0,0.00018527,2]
[372961488,1752823846861,-885.0,0.00018527,2]
[372961489,1752823846871,-460.0,0.00018527,2]
[372961490,1752823846880,-460.0,0.00018527,2]
[372961491,1752823846890,-460.0,0.00018527,2]
[372961492,1752823846899,-2855.59,0.00018527,2]
[372961493,1752823846909,-460.0,0.00018527,2]
[372961494,1752823846919,-609.03,0.00018527,2]
[372961495,1752823846929,-460.0,0.00018527,2]
[372961496,1752823846939,-460.0,0.00018527,2]
[372961497,1752823846949,-758.61,0.00018527,2]
[372961498,1752823846958,-324.09839026,0.00018625,2]
[372961499,1752823846968,-460.0,0.00018625,2]
[372961500,1752823846977,-460.0,0.00018625,2]
[372961501,1752823846987,-460.0,0.00018625,2]
[372961502,1752823846997,-460.0,0.00018625,2]
[372961503,1752823847007,-460.0,0.00018625,2]
[372961504,1752823847016,-460.0,0.00018625,2]
[372961505,1752823847026,-511.89,0.00018625,2]
[372961506,1752823847035,-460.0,0.00018625,2]
[372961507,1752823847045,-460.0,0.00018625,2]
[372961508,1752823847055,-1478.52,0.00018625,2]
[372961509,1752823847064,-556.7,0.00018625,2]
[372961510,1752823847074,-836.74,0.00018626,2]
[372961511,1752823847083,-2434.15,0.00018626,2]
[372961512,1752823847094,-675.88,0.00018626,2]
[372961513,1752823847103,-12610.43989422,0.0001865,2]
[372961514,1752823847113,-160.0,0.00018653,2]
[372961515,1752823847122,-160.0,0.00018653,2]
[372961516,1752823847132,-160.0,0.00018653,2]
[372961517,1752823847142,-160.0,0.00018653,2]
[372961518,1752823847151,-160.0,0.00018653,2]
[372961519,1752823847161,-839.30593155,0.00018653,2]
[372961520,1752823847171,-215.63268315,0.00018653,2]
[372961521,1752823847180,-160.0,0.00018653,2]
[372961522,1752823847190,-476.25663856,0.00018653,2]
[372961523,1752823847199,-230.89969799,0.00018653,2]
[372961524,1752823847208,-160.0,0.00018653,2]
[372961525,1752823847218,-160.0,0.00018653,2]
[372961526,1752823847227,-214.4881157,0.00018653,2]
[372961527,1752823847236,-525.75194068,0.00018653,2]
[372961528,1752823847246,-565.01201888,0.00018732,2]
[372961529,1752823847256,-1070.21524862,0.00018762,2]
[372961530,1752823847265,-506.15617411,0.00018765,2]
[372961531,1752823847275,-500.0,0.00018781,2]
[372961532,1752823847284,-460.0,0.00018799,2]
[372961533,1752823847294,-460.0,0.00018799,2]
[372961534,1752823847304,-460.0,0.00018799,2]
[372961535,1752823847313,-1420.83,0.00018799,2]
[372961536,1752823847323,-460.0,0.00018799,2]
[372961537,1752823847332,-3946.43,0.00018799,2]
[372961538,1752823847343,-460.0,0.000188,2]
[372961539,1752823847353,-460.0,0.000188,2]
[372961540,1752823847362,-154.55,0.000188,2]
[372961541,1752823847372,-460.0,0.000188,2]
[372961542,1752823847381,-460.0,0.000188,2]
[372961543,1752823847391,-1726.21,0.000188,2]
[372961544,1752823847400,-527.4,0.000188,2]
[372961545,1752823847410,-460.0,0.000188,2]
[372961546,1752823847419,-986.53,0.000188,2]
[372961547,1752823847429,-460.0,0.000188,2]
[372961548,1752823847438,-374.9,0.000188,2]
[372961549,1752823847448,-460.0,0.000188,2]
[372961550,1752823847457,-460.0,0.000188,2]
[372961551,1752823847467,-460.0,0.000188,2]
[372961552,1752823847476,-1371.94,0.000188,2]
[372961553,1752823847485,-460.0,0.000188,2]
[372961554,1752823847494,-272.7,0.000188,2]
[372961555,1752823847504,-911.92,0.000188,2]
[372961556,1752823847514,-629.12,0.000188,2]
[372961557,1752823847523,-638.39,0.000188,2]
[372961558,1752823847533,-464.0,0.00018801,2]
[372961559,1752823847545,-885.0,0.00018801,2]
[372961560,1752823847554,-460.0,0.00018801,2]
[372961561,1752823847564,-460.0,0.00018801,2]
[372961562,1752823847573,-460.0,0.00018801,2]
[372961564,1752823847583,-2855.59,0.00018801,2]
[372961566,1752823847593,-460.0,0.00018801,2]
[372961568,1752823847603,-609.03,0.00018801,2]
[372961570,1752823847614,-460.0,0.00018801,2]
[372961572,1752823847624,-460.0,0.00018801,2]
[372961574,1752823847633,-758.61,0.00018801,2]
[372961576,1752823847642,-160.0,0.00018818,2]
[372961578,1752823847652,-500.0,0.00018886,2]
[372961580,1752823847662,-411.58678466,0.00018886,2]
[372961582,1752823847671,-500.0,0.00018886,2]
[372961584,1752823847684,-500.0,0.00018886,2]
[372961586,1752823847694,-500.0,0.00018886,2]
[372961588,1752823847704,-460.0,0.00018899,2]
[372961590,1752823847713,-571.36,0.00018899,2]
[372961592,1752823847723,-226.15,0.00018899,2]
[372961594,1752823847733,-460.0,0.00018899,2]
[372961595,1752823847742,-460.0,0.00018899,2]
[372961597,1752823847751,-460.0,0.00018899,2]
[372961599,1752823847760,-511.89,0.00018899,2]
[372961601,1752823847769,-460.0,0.00018899,2]
[372961603,1752823847779,-460.0,0.00018899,2]
[372961605,1752823847789,-1478.52,0.00018899,2]
[372961607,1752823847798,-836.74,0.000189,2]
[372961609,1752823847807,-2345.25903301,0.000189,2]
[372961611,1752823847817,-2434.15,0.000189,2]
[372961613,1752823847827,-675.88,0.000189,2]
[372961615,1752823847836,-500.0,0.00018925,2]
[372961617,1752823847848,-501.28348829,0.00018925,2]
[372961619,1752823847858,-502.96497477,0.00018943,2]
[372961620,1752823847867,-500.0,0.00018943,2]
[372961622,1752823847876,-18000.0,0.00019,2]
[372961624,1752823847886,-1070.21524862,0.00019072,2]
[372961627,1752823847897,-460.0,0.00019073,2]
[372961628,1752823847906,-460.0,0.00019073,2]
[372961629,1752823847916,-460.0,0.00019073,2]
[372961630,1752823847925,-1420.83,0.00019073,2]
[372961631,1752823847935,-460.0,0.00019073,2]
[372961632,1752823847945,-3946.43,0.00019073,2]
[372961633,1752823847954,-460.0,0.00019074,2]
[372961634,1752823847964,-460.0,0.00019074,2]
[372961635,1752823847973,-460.0,0.00019074,2]
[372961636,1752823847982,-460.0,0.00019074,2]
[372961637,1752823847992,-1726.21,0.00019074,2]
[372961638,1752823848002,-461.89,0.00019074,2]
[372961639,1752823848011,-986.53,0.00019074,2]
[372961640,1752823848021,-460.0,0.00019074,2]
[372961641,1752823848031,-460.0,0.00019074,2]
[372961642,1752823848040,-488.56,0.00019074,2]
[372961643,1752823848049,-460.0,0.00019074,2]
[372961644,1752823848059,-1371.94,0.00019074,2]
[372961645,1752823848069,-540.36,0.00019074,2]
[372961646,1752823848078,-911.92,0.00019074,2]
[372961647,1752823848178,-629.12,0.00019074,2]
[372961648,1752823848188,-638.39,0.00019074,2]
[372961649,1752823848197,-464.0,0.00019075,2]
[372961650,1752823848207,-885.0,0.00019075,2]
[372961651,1752823848217,-465.89,0.00019075,2]
[372961652,1752823848226,-306.66,0.00019075,2]
[372961653,1752823848236,-460.0,0.00019075,2]
[372961654,1752823848246,-2855.59,0.00019075,2]
[372961655,1752823848256,-460.0,0.00019075,2]
[372961656,1752823848266,-609.03,0.00019075,2]
[372961657,1752823848276,-273.98,0.00019075,2]
[372961658,1752823848286,-397.82415302,0.00019075,2]
[372961659,1752823848295,-758.61,0.00019075,2]
[372961660,1752823848305,-460.0,0.00019173,2]
[372961661,1752823848314,-492.58,0.00019173,2]
[372961662,1752823848324,-460.0,0.00019173,2]
[372961663,1752823848333,-460.0,0.00019173,2]
[372961664,1752823848343,-511.89,0.00019173,2]
[372961665,1752823848352,-460.0,0.00019173,2]
[372961666,1752823848362,-460.0,0.00019173,2]
[372961667,1752823848371,-1478.52,0.00019173,2]
[372961668,1752823848381,-836.74,0.00019174,2]
[372961669,1752823848390,-2434.15,0.00019174,2]
[372961670,1752823848400,-675.88,0.00019174,2]
[372961671,1752823848410,-151.0,0.00019178,2]
[372961672,1752823848420,-666.0,0.00019178,2]
[372961673,1752823848429,-314.983287,0.00019178,2]
[372961674,1752823848438,-500.0,0.00019271,2]
[372961675,1752823848448,-501.23142804,0.00019271,2]
[372961676,1752823848457,-500.0,0.00019273,2]
[372961677,1752823848467,-500.89754894,0.00019273,2]
[372961678,1752823848477,-500.0,0.00019273,2]
[372961679,1752823848487,-500.0,0.00019273,2]
[372961680,1752823848497,-500.0,0.00019273,2]
[372961681,1752823848507,-21304.21333245,0.00019329,2]
[372961682,1752823848517,-460.0,0.00019347,2]
[372961683,1752823848526,-476.72,0.00019347,2]
[372961684,1752823848538,-239.18,0.00019347,2]
[372961685,1752823848547,-1420.83,0.00019347,2]
[372961686,1752823848556,-510.14,0.00019347,2]
[372961687,1752823848566,-3946.43,0.00019347,2]
[372961688,1752823848576,-460.0,0.00019348,2]
[372961689,1752823848585,-460.0,0.00019348,2]
[372961690,1752823848596,-460.0,0.00019348,2]
[372961691,1752823848605,-568.68,0.00019348,2]
[372961692,1752823848616,-1726.21,0.00019348,2]
[372961693,1752823848627,-986.53,0.00019348,2]
[372961694,1752823848637,-460.0,0.00019348,2]
[372961695,1752823848646,-460.0,0.00019348,2]
[372961696,1752823848655,-460.0,0.00019348,2]
[372961697,1752823848666,-1371.94,0.00019348,2]
[372961698,1752823848676,-911.92,0.00019348,2]
[372961699,1752823848685,-629.12,0.00019348,2]
[372961700,1752823848695,-638.39,0.00019348,2]
[372961701,1752823848705,-464.0,0.00019349,2]
[372961702,1752823848714,-885.0,0.00019349,2]
[372961703,1752823848724,-460.0,0.00019349,2]
[372961704,1752823848734,-2855.59,0.00019349,2]
[372961705,1752823848744,-460.0,0.00019349,2]
[372961706,1752823848754,-609.03,0.00019349,2]
[372961707,1752823848764,-758.61,0.00019349,2]
[372961708,1752823848774,-260.0,0.00019366,2]
[372961709,1752823848783,-1070.21524862,0.00019383,2]
[372961710,1752823848793,-1000.0,0.00019434,2]
[372961711,1752823848802,-504.00220653,0.00019434,2]
[372961712,1752823848812,-1000.0,0.00019434,2]
[372961713,1752823848822,-500.0,0.00019434,2]
[372961714,1752823848831,-266.7,0.00019447,2]
[372961715,1752823848841,-202.84599478,0.00019447,2]
[372961716,1752823848852,-460.0,0.00019447,2]
[372961717,1752823848861,-511.89,0.00019447,2]
[372961718,1752823848871,-460.0,0.00019447,2]
[372961719,1752823848881,-460.0,0.00019447,2]
[372961720,1752823848891,-1478.52,0.00019447,2]
[372961721,1752823848901,-836.74,0.00019448,2]
[372961722,1752823848910,-2434.15,0.00019448,2]
[372961723,1752823848920,-675.88,0.00019448,2]
[372961724,1752823848930,-1004.03453028,0.00019473,2]
[372961725,1752823848939,-795.28006527,0.00019491,2]
[372961726,1752823848949,-484.91239098,0.00019621,2]
[372961727,1752823848959,-1420.83,0.00019621,2]
[372961728,1752823848968,-3946.43,0.00019621,2]
[372961729,1752823848978,-460.0,0.00019622,2]
[372961730,1752823848988,-460.0,0.00019622,2]
[372961731,1752823848998,-460.0,0.00019622,2]
[372961732,1752823849007,-1726.21,0.00019622,2]
[372961733,1752823849017,-986.53,0.00019622,2]
[372961734,1752823849027,-460.0,0.00019622,2]
[372961735,1752823849037,-460.0,0.00019622,2]
[372961736,1752823849046,-460.0,0.00019622,2]
[372961737,1752823849056,-1371.94,0.00019622,2]
[372961738,1752823849066,-911.92,0.00019622,2]
[372961739,1752823849076,-629.12,0.00019622,2]
[372961740,1752823849086,-638.39,0.00019622,2]
[372961741,1752823849099,-464.0,0.00019623,2]
[372961742,1752823849109,-885.0,0.00019623,2]
[372961743,1752823849119,-460.0,0.00019623,2]
[372961744,1752823849129,-2855.59,0.00019623,2]
[372961745,1752823849139,-460.0,0.00019623,2]
[372961746,1752823849148,-609.03,0.00019623,2]
[372961747,1752823849158,-758.61,0.00019623,2]
[372961748,1752823849167,-1070.21524862,0.00019693,2]
[372961749,1752823849178,-460.0,0.00019721,2]
[372961750,1752823849187,-511.89,0.00019721,2]
[372961751,1752823849196,-460.0,0.00019721,2]
[372961752,1752823849206,-232.03,0.00019721,2]
[372961753,1752823849215,-1478.52,0.00019721,2]
[372961754,1752823849224,-836.74,0.00019722,2]
[372961755,1752823849235,-2434.15,0.00019722,2]
[372961756,1752823849244,-675.88,0.00019722,2]
[372961757,1752823849254,-500.45794456,0.00019819,2]
[372961758,1752823849263,-1000.0,0.00019821,2]
[372961759,1752823849272,-2682.70294298,0.00019842,2]
[372961760,1752823849282,-1420.83,0.00019895,2]
[372961761,1752823849291,-3946.43,0.00019895,2]
[372961762,1752823849301,-17669.77879333,0.00019896,2]
[372961763,1752823849310,-460.0,0.00019896,2]
[372961764,1752823849320,-566.44918152,0.00019896,2]
[372961765,1752823849330,-409.89215744,0.00019896,2]
[372961766,1752823849339,-1726.21,0.00019896,2]
[372961767,1752823849353,-986.53,0.00019896,2]
[372961768,1752823849366,-460.0,0.00019896,2]
[372961769,1752823849376,-460.0,0.00019896,2]
[372961770,1752823849386,-299.4,0.00019896,2]
[372961771,1752823849396,-1371.94,0.00019896,2]
[372961772,1752823849406,-911.92,0.00019896,2]
[372961773,1752823849416,-629.12,0.00019896,2]
[372961774,1752823849425,-638.39,0.00019896,2]
[372961775,1752823849435,-464.0,0.00019897,2]
[372961776,1752823849445,-885.0,0.00019897,2]
[372961777,1752823849454,-460.0,0.00019897,2]
[372961778,1752823849463,-2855.59,0.00019897,2]
[372961779,1752823849472,-460.0,0.00019897,2]
[372961780,1752823849482,-609.03,0.00019897,2]
[372961781,1752823849491,-758.61,0.00019897,2]
[372961782,1752823849501,-360.0,0.00019914,2]
[372961783,1752823849510,-468.2,0.00019935,2]
[372961784,1752823849519,-509.97453213,0.00019982,2]
[372961785,1752823849529,-460.0,0.00019995,2]
[372961786,1752823849543,-511.89,0.00019995,2]
[372961787,1752823849552,-460.0,0.00019995,2]
[372961788,1752823849562,-1478.52,0.00019995,2]
[372961789,1752823849572,-836.74,0.00019996,2]
[372961790,1752823849582,-2434.15,0.00019996,2]
[372961791,1752823849594,-675.88,0.00019996,2]
[372961792,1752823849603,-200.0,0.00019996,10]
[372961793,1752823849614,-183.230615,0.00019996,10]
[372961794,1752823849625,-1070.21524862,0.00020003,2]
[372961795,1752823849635,-1420.83,0.00020169,2]
[372961796,1752823849644,-3946.43,0.00020169,2]
[372961797,1752823849654,-460.0,0.0002017,2]
[372961798,1752823849664,-1726.21,0.0002017,2]
[372961799,1752823849673,-986.53,0.0002017,2]
[372961800,1752823849683,-460.0,0.0002017,2]
[372961801,1752823849692,-460.0,0.0002017,2]
[372961802,1752823849703,-1371.94,0.0002017,2]
[372961803,1752823849713,-911.92,0.0002017,2]
[372961804,1752823849722,-629.12,0.0002017,2]
[372961805,1752823849731,-597.29509865,0.0002017,2]
[372961806,1752823849750,-41.09490135,0.0002017,2]
[372961807,1752823849760,-464.0,0.00020171,2]
[372961808,1752823849769,-264.53899165,0.00020171,2]
[372961809,1752823849781,-620.46100835,0.00020171,2]
[372961810,1752823849791,-439.37,0.00020171,2]
[372961811,1752823849800,-2855.59,0.00020171,2]
[372961812,1752823849810,-460.0,0.00020171,2]
[372961813,1752823849820,-609.03,0.00020171,2]
[372961814,1752823849830,-758.61,0.00020171,2]
[372961815,1752823849839,-279.637684,0.00020187,2]
[372961816,1752823849850,-275.88871199,0.00020247,3]
[372961817,1752823849863,-52.11128801,0.00020247,3]
[372961818,1752823849872,-372.72249731,0.00020269,2]
[372961819,1752823849885,-87.27750269,0.00020269,2]
[372961820,1752823849895,-511.89,0.00020269,2]
[372961821,1752823849905,-460.0,0.00020269,2]
[372961822,1752823849915,-1478.52,0.00020269,2]
[372961823,1752823849924,-836.74,0.0002027,2]
[372961824,1752823849934,-2434.15,0.0002027,2]
[372961825,1752823849943,-675.88,0.0002027,2]
[372961826,1752823849952,-164.153176,0.00020273,2]
[372961827,1752823849962,-1070.21524862,0.00020314,3]
[372961828,1752823849971,-1500.0,0.00020369,2]
[372961829,1752823849981,-1420.83,0.00020443,2]
[372961830,1752823849991,-3946.43,0.00020443,2]
[372961831,1752823850001,-460.0,0.00020444,2]
[372961832,1752823850010,-1726.21,0.00020444,2]
[372961833,1752823850020,-986.53,0.00020444,2]
[372961834,1752823850029,-460.0,0.00020444,2]
[372961835,1752823850039,-460.0,0.00020444,2]
[372961836,1752823850123,-1371.94,0.00020444,2]
[372961837,1752823850141,-911.92,0.00020444,2]
[372961838,1752823850151,-629.12,0.00020444,2]
[372961839,1752823850160,-638.39,0.00020444,2]
[372961840,1752823850170,-464.0,0.00020445,2]
[372961841,1752823850181,-885.0,0.00020445,2]
[372961842,1752823850191,-2855.59,0.00020445,2]
[372961843,1752823850200,-460.0,0.00020445,2]